bitfinex-derivatives/quotes_ETHF0:USTF0_20250923
["timestamp","ask_amount","ask_price","bid_price","bid_amount"]
[1758636718215,0.3182,4205.4,4204.6,1.06948]
[1758636718811,0.3182,4205.4,4205.2,0.42772]
[1758636719013,0.1262,4206.0,4205.7,0.42767]
[1758636719212,0.74581,4206.4,4205.7,0.249]
[1758636719522,0.3182,4206.4,4205.7,0.249]
[1758636719724,0.3182,4206.4,4206.2,0.42762]
[1758636719923,0.42762,4206.3,4205.7,0.249]
[1758636720224,0.3182,4206.3,4206.0,0.42764]
[1758636720518,0.3182,4206.3,4205.3,0.2884]
[1758636720519,0.126,4206.0,4205.7,0.151]
[1758636720722,0.42769,4205.6,4205.5,0.249]
[1758636720919,0.126,4205.5,4205.2,0.249]
[1758636721120,0.3182,4205.4,4205.2,0.67673]
[1758636721417,0.126,4205.5,4205.1,0.249]
[1758636721618,0.3182,4205.4,4205.2,0.42773]
[1758636721815,0.55371,4205.5,4205.1,0.249]
[1758636722019,0.55371,4205.5,4205.2,0.42773]
[1758636722211,0.3182,4205.5,4205.4,0.42772]
[1758636722411,0.3182,4206.0,4205.8,0.42767]
[1758636722625,0.42764,4206.2,4205.9,0.42766]
[1758636722824,0.3182,4206.1,4205.8,0.42767]
[1758636723119,0.3182,4206.4,4205.2,0.2884]
[1758636723325,0.3182,4206.1,4206.0,0.42765]
[1758636723822,0.42768,4205.9,4205.5,0.4277]
[1758636724018,0.3182,4205.8,4205.2,0.2884]
[1758636724227,0.42768,4205.8,4205.2,0.2884]
[1758636724420,0.126,4206.0,4205.2,0.2884]
[1758636724721,0.126,4206.5,4205.2,0.2884]
[1758636724722,0.42764,4206.2,4205.9,0.42767]
[1758636725027,0.126,4206.5,4205.9,0.42767]
[1758636725028,0.3182,4206.0,4205.9,0.42767]
[1758636725426,0.3182,4206.4,4206.3,0.42762]
[1758636725614,0.74582,4206.4,4206.1,0.42764]
[1758636725819,0.42767,4206.0,4205.1,0.249]
[1758636726018,0.42769,4205.7,4204.8,1.06943]
[1758636726320,0.3182,4205.4,4204.3,0.2884]
[1758636726528,0.3182,4204.9,4204.0,0.42786]
[1758636726722,0.3182,4204.9,4203.9,0.239]
[1758636727026,0.4442,4204.0,4203.9,0.239]
[1758636727417,0.3182,4203.8,4203.4,0.249]
[1758636727618,0.3182,4203.9,4203.4,0.249]
[1758636727818,0.3182,4204.4,4204.1,0.42785]
[1758636728028,0.126,4204.5,4204.2,0.42784]
[1758636728228,0.3182,4204.4,4204.0,0.42785]
[1758636728421,0.126,4204.5,4203.7,0.5374]
[1758636728617,0.4442,4204.5,4203.7,0.5374]
[1758636729032,0.3182,4204.4,4204.3,0.42783]
[1758636729527,1.06938,4205.1,4203.7,0.2884]
[1758636729827,0.3182,4204.2,4203.8,0.249]
[1758636730023,0.3182,4204.2,4204.1,0.42785]
[1758636730423,0.4442,4204.5,4204.4,0.42782]
[1758636730820,0.42784,4204.3,4203.8,0.249]
[1758636731129,0.42784,4204.3,4203.0,39.70331]
[1758636731130,0.3182,4204.2,4203.9,0.42787]
[1758636731326,0.3182,4204.4,4203.9,0.138]
[1758636731533,0.42784,4204.2,4203.9,0.138]
[1758636731723,0.3114,4204.0,4203.9,0.138]
[1758636732224,0.235,4205.7,4203.9,0.138]
[1758636732225,0.3114,4204.9,4204.8,0.42778]
[1758636732431,0.3114,4205.4,4205.2,0.42773]
[1758636732627,0.3114,4205.9,4205.7,0.42768]
[1758636732925,0.126,4206.0,4205.7,0.42768]
[1758636733124,0.3114,4205.9,4205.8,0.42767]
[1758636733327,0.3114,4205.9,4205.0,0.52638]
[1758636733521,0.3114,4205.9,4205.0,0.2886]
[1758636733723,0.126,4206.0,4205.8,0.42767]
[1758636733724,0.4374,4206.0,4205.8,0.42767]
[1758636733920,0.3114,4205.9,4205.8,0.42767]
[1758636734122,0.56161,4206.5,4206.1,0.42764]
[1758636734322,0.3114,4206.4,4206.0,0.42765]
[1758636734524,0.42763,4206.3,4205.8,0.42767]
[1758636734725,0.3114,4206.4,4205.7,0.25]
[1758636735328,0.42762,4206.4,4205.7,0.25]
[1758636735531,0.3114,4206.4,4205.7,0.25]
[1758636736029,0.3114,4206.4,4206.0,0.42765]
[1758636736234,0.73903,4206.3,4205.7,0.25]
[1758636736437,0.42763,4206.3,4206.0,0.42765]
[1758636736637,0.3114,4205.9,4204.9,0.2886]
[1758636736828,0.73914,4205.2,4204.9,0.42777]
[1758636737028,0.3114,4205.4,4204.9,0.42777]
[1758636737231,0.4454,4205.0,4204.7,0.67779]
[1758636737537,0.3114,4204.9,4204.8,0.42778]
[1758636737723,0.42772,4205.4,4205.1,0.42775]
[1758636737927,0.73913,4205.3,4205.1,0.42775]
[1758636738129,0.134,4205.5,4204.7,0.25]
[1758636738130,0.3114,4205.2,4204.8,0.42777]
[1758636738336,0.3114,4204.8,4204.7,0.25]
[1758636738543,0.3114,4204.3,4203.4,0.2886]
[1758636738837,0.56181,4204.5,4203.9,0.42787]
[1758636739034,0.42782,4204.4,4204.1,0.42785]
[1758636739234,0.73922,4204.4,4203.5,0.48786999]
[1758636739434,0.42783,4204.3,4204.0,0.42785]
[1758636739629,0.3114,4204.1,4204.0,0.42785]
[1758636740735,0.3114,4204.1,4203.5,0.25]
[1758636740933,0.3114,4204.1,4203.8,0.42788]
[1758636741134,0.3114,4204.1,4203.9,0.42787]
[1758636742628,0.42782,4204.4,4203.9,0.42787]
[1758636742629,0.42783,4204.4,4203.9,0.25]
[1758636742833,0.50731531,4204.3,4204.1,0.71645]
[1758636743035,0.134,4204.5,4203.9,0.25]
[1758636743235,0.3059,4204.3,4204.2,0.42784]
[1758636743435,0.50727701,4204.3,4203.9,0.25]
[1758636743638,0.3059,4204.2,4204.1,0.42785]
[1758636744038,0.3059,4204.2,4204.1,0.67785]
[1758636744730,0.4399,4204.5,4204.4,0.42782]
[1758636744930,0.4399,4204.5,4204.1,0.25]
[1758636744931,0.64126099,4204.5,4204.1,0.25]
[1758636745141,0.3059,4204.3,4204.2,0.42784]
[1758636745337,0.3059,4204.9,4204.8,0.42777]
[1758636745543,0.81292903,4204.9,4204.8,0.42777]
[1758636745736,0.3059,4204.8,4204.7,0.42779]
[1758636745933,0.81292903,4204.8,4204.7,0.42779]
[1758636746646,0.3059,4204.7,4204.5,0.42781]
[1758636746840,0.42778,4204.8,4204.6,0.4278]
[1758636747047,0.8129579,4204.7,4204.6,0.4278]
[1758636747239,0.8129579,4204.7,4204.1,0.25]
[1758636747439,0.42777,4204.9,4204.7,0.42778]
[1758636747746,0.81295202,4204.8,4204.7,0.42778]
[1758636748544,0.81295202,4204.8,4204.2,0.2883]
[1758636748847,0.81295202,4204.7,4204.6,0.4278]
[1758636749546,0.81295202,4204.7,4204.1,0.25]
[1758636749748,0.42778,4204.8,4204.3,0.42783]
[1758636750048,0.1313,4204.5,4204.1,0.42784]
[1758636750249,0.4372,4204.5,4203.8,0.2883]
[1758636750438,0.3059,4203.8,4203.4,0.42792]
[1758636750649,0.3059,4203.7,4203.6,0.187]
[1758636751749,0.3059,4203.7,4203.6,0.6149]
[1758636754049,0.3059,4203.7,4203.2,0.2875]
[1758636754253,0.42795,4203.2,4202.9,0.02379338]
[1758636754454,0.4372,4203.0,4202.9,0.02379338]
[1758636754754,0.4372,4203.0,4201.2,1.07035]
[1758636754755,0.3059,4202.4,4202.0,0.55806]
[1758636755148,0.3059,4202.3,4202.0,0.13]
[1758636755649,0.1313,4202.5,4202.1,0.42805]
[1758636755851,0.3059,4202.4,4202.0,0.13]
[1758636756150,0.1313,4202.5,4201.2,0.47295167]
[1758636756350,0.1313,4202.0,4201.4,0.42812]
[1758636756555,0.3059,4201.9,4201.4,0.42812]
[1758636756855,0.3059,4201.9,4201.3,0.56713]
[1758636757055,0.55937,4202.0,4201.4,0.67712]
[1758636757351,0.55937,4202.0,4201.4,0.249]
[1758636757352,0.1313,4202.0,4201.4,0.249]
[1758636757557,0.1313,4202.0,4201.5,0.42811]
[1758636757854,0.1313,4202.0,4201.6,0.4281]
[1758636758048,0.55937,4202.0,4201.4,0.67712]
[1758636758247,0.55937,4202.0,4201.5,0.42811]
[1758636758443,0.1313,4202.0,4201.4,0.249]
[1758636758748,0.3059,4201.7,4201.4,0.249]
[1758636758948,0.3059,4201.9,4201.6,0.4281]
[1758636759155,0.42809,4201.8,4201.6,0.15]
[1758636759348,0.3059,4201.7,4201.6,0.15]
[1758636760255,0.1313,4202.0,4200.2,1.07061]
[1758636760452,0.3059,4201.3,4200.6,0.2875]
[1758636760653,0.55947,4201.0,4200.3,0.18527412]
[1758636760850,0.3059,4200.9,4200.5,0.42821]
[1758636761052,0.1313,4201.0,4200.6,0.4282]
[1758636761250,0.1313,4201.0,4200.8,0.42818]
[1758636761448,0.3059,4200.9,4200.8,0.42818]
[1758636761651,0.1313,4201.0,4200.4,0.138]
[1758636761948,0.55947,4201.0,4200.5,0.42821]
[1758636762151,0.1313,4201.0,4200.7,0.42819]
[1758636762747,0.3059,4200.9,4200.8,0.42818]
[1758636762947,0.1313,4201.0,4200.6,0.4282]
[1758636763145,0.1313,4201.0,4200.7,0.42819]
[1758636763350,0.3059,4200.9,4200.4,0.138]
[1758636763547,0.1313,4201.0,4200.4,0.138]
[1758636763949,0.3059,4200.9,4200.8,0.42818]
[1758636764148,0.3059,4200.9,4200.4,0.56622]
[1758636764353,0.3059,4200.9,4200.5,0.42821]
[1758636764657,0.3059,4200.9,4199.5,1.11368]
[1758636764658,1.20185,4200.5,4199.2,0.71584]
[1758636764862,0.3059,4199.4,4199.2,0.42835]
[1758636765156,0.3059,4199.4,4199.0,38.541]
[1758636765364,0.73425,4199.2,4198.6,0.18700335]
[1758636765661,0.1313,4199.5,4198.6,0.18700335]
[1758636765662,0.3059,4198.9,4198.6,0.18700335]
[1758636765857,0.4372,4198.5,4198.4,0.51143]
[1758636766257,0.4372,4198.5,4197.7,0.2875]
[1758636766447,0.3059,4198.4,4197.7,0.2875]
[1758636766649,0.3059,4198.4,4198.3,0.42844]
[1758636766854,0.3059,4198.9,4198.8,0.42839]
[1758636767061,0.1313,4200.0,4199.3,0.42834]
[1758636767357,0.3059,4199.5,4199.3,0.42834]
[1758636767660,0.3059,4199.9,4199.0,0.2875]
[1758636767855,0.3059,4199.9,4199.8,0.42829]
[1758636768061,0.1313,4200.5,4200.3,0.42823]
[1758636768062,0.3059,4200.4,4200.3,0.42823]
[1758636768259,0.3059,4200.4,4199.8,0.249]
[1758636768458,0.1313,4200.5,4200.2,0.42824]
[1758636768758,0.3059,4200.4,4200.3,0.42824]
[1758636769657,0.3059,4200.4,4199.8,0.67728]
[1758636770059,0.3059,4200.4,4200.2,0.42824]
[1758636770259,0.3059,4200.9,4200.4,0.42823]
[1758636770559,0.42814,4201.3,4200.7,0.42819]
[1758636770751,0.42815,4201.2,4200.5,0.42821]
[1758636770951,0.42815,4201.2,4200.6,0.4282]
[1758636770952,0.3059,4200.9,4200.6,0.4282]
[1758636771355,0.3059,4200.9,4200.5,0.42821]
[1758636771760,0.4282,4200.7,4200.1,0.42825]
[1758636772148,0.1313,4200.5,4199.9,0.42828]
[1758636772355,0.1313,4200.5,4200.0,0.42827]
[1758636772555,0.1313,4200.5,4200.2,0.42824]
[1758636772756,0.3059,4200.4,4200.3,0.42823]
[1758636773254,0.3039,4200.4,4200.1,0.42825]
[1758636773459,0.1313,4200.5,4200.1,0.42825]
[1758636773659,0.1313,4200.5,4199.9,0.155]
[1758636773660,0.1313,4200.5,4200.2,0.42824]
[1758636773960,0.42826,4200.1,4199.2,0.2881]
[1758636774168,0.55357,4200.0,4199.4,0.42833]
[1758636774361,0.4292,4199.5,4199.3,0.249]
[1758636774566,0.3039,4199.4,4199.3,0.249]
[1758636775065,0.1253,4200.0,4199.3,0.249]
[1758636775265,0.3039,4199.9,4199.3,0.249]
[1758636775464,0.3039,4199.9,4199.4,0.42833]
[1758636775664,0.4292,4200.0,4199.3,0.249]
[1758636775962,0.3039,4200.4,4199.4,1.07081]
[1758636776161,0.3039,4200.4,4200.3,0.42823]
[1758636776462,0.3039,4200.4,4199.9,1.07068]
[1758636776463,0.1313,4201.0,4200.7,0.42819]
[1758636776659,0.3039,4200.9,4200.2,0.2881]
[1758636776850,0.3039,4200.9,4200.8,0.42819]
[1758636777055,0.3039,4200.9,4200.3,1.0706]
[1758636777056,0.1313,4201.0,4199.7,1.35884]
[1758636777262,0.3039,4200.8,4200.7,0.42819]
[1758636778067,0.1253,4201.5,4201.4,0.42812]
[1758636778560,0.3039,4201.4,4201.2,0.42814]
[1758636778755,0.3039,4201.4,4200.7,1.3586]
[1758636778756,0.4292,4201.5,4201.4,0.42812]
[1758636779358,0.3039,4201.5,4201.4,0.42812]
[1758636779761,0.3039,4201.4,4201.3,0.42813]
[1758636780966,0.3039,4200.9,4200.7,0.249]
[1758636781167,0.1253,4201.0,4200.7,0.6772]
[1758636781368,0.1253,4201.5,4201.0,0.42816]
[1758636781661,0.55342,4201.5,4200.7,0.249]
[1758636781866,0.42813,4201.4,4201.0,0.42816]
[1758636782066,0.3039,4201.4,4201.0,0.42816]
[1758636782269,0.4292,4201.5,4200.8,1.07047]
[1758636782568,0.3039,4201.5,4201.3,0.71623]
[1758636782975,0.4292,4202.0,4201.9,0.42807]
[1758636783172,0.1253,4202.5,4202.2,0.42804]
[1758636783367,0.55332,4202.5,4202.0,0.42806]
[1758636783564,0.1253,4202.5,4201.6,0.2881]
[1758636783763,0.1253,4202.5,4202.2,0.42804]
[1758636783963,0.3039,4202.4,4202.3,0.42803]
[1758636784160,0.73192,4202.4,4201.6,0.249]
[1758636784467,0.1253,4202.0,4201.1,0.2881]
[1758636784666,0.3039,4201.9,4201.7,0.42809]
[1758636785061,0.1253,4202.0,4201.7,0.42809]
[1758636785267,0.3039,4201.7,4201.6,0.249]
[1758636786065,0.3039,4202.4,4202.0,0.42806]
[1758636786764,0.3039,4202.4,4201.7,0.2881]
[1758636786961,0.1253,4202.5,4201.7,0.2881]
[1758636787169,0.3039,4202.5,4202.3,0.71613]
[1758636787467,0.1253,4203.0,4202.4,0.42802]
[1758636787468,0.3039,4202.9,4202.4,0.42802]
[1758636787667,0.55326,4203.0,4202.4,0.42802]
[1758636787972,0.1253,4202.5,4202.4,0.42802]
[1758636788179,0.4292,4202.5,4202.4,0.42802]
[1758636788765,0.1253,4202.5,4201.8,0.2881]
[1758636788967,0.1253,4202.5,4201.9,1.31919]
[1758636789374,0.1253,4202.5,4201.9,1.07019]
[1758636789574,0.3039,4202.4,4202.3,0.42803]
[1758636789870,0.3039,4203.4,4202.5,0.2881]
[1758636790076,0.1253,4203.5,4202.1,0.52603999]
[1758636790277,0.3039,4202.9,4202.6,0.249]
[1758636790479,0.55326,4203.0,4202.6,0.249]
[1758636790770,0.1253,4203.0,4202.6,0.677]
[1758636791171,0.3039,4202.9,4202.8,0.42798]
[1758636791369,0.4357,4203.5,4202.7,0.2877]
[1758636791568,0.42789,4203.7,4203.2,0.2877]
[1758636791763,0.87231,4203.5,4202.6,0.249]
[1758636791974,0.87231,4203.5,4202.8,0.2877]
[1758636792174,0.56191,4203.5,4203.1,0.42795]
[1758636792376,0.3104,4203.4,4203.1,0.42795]
[1758636792573,0.134,4203.5,4203.3,0.42792]
[1758636792769,0.3104,4203.4,4203.3,0.42792]
[1758636792965,0.134,4203.5,4202.6,0.249]
[1758636793268,0.42797,4202.9,4202.6,0.249]
[1758636793467,0.56202,4202.5,4201.9,0.42807]
[1758636793671,0.56202,4202.5,4201.3,0.23798]
[1758636793672,0.3104,4202.4,4201.3,0.23798]
[1758636793966,0.3104,4202.2,4201.4,0.249]
[1758636794165,0.3104,4202.2,4201.5,0.2877]
[1758636794369,0.3104,4202.2,4201.7,0.42809]
[1758636794370,0.42805,4202.2,4201.7,0.42809]
[1758636794569,1.07009,4202.3,4201.5,0.2877]
[1758636794870,0.3104,4201.7,4201.1,0.035]
[1758636795066,0.7385,4201.7,4201.1,0.035]
[1758636795279,0.3104,4201.7,4201.3,0.42813]
[1758636795681,0.42812,4201.4,4200.9,0.42817]
[1758636795869,0.3104,4201.3,4200.9,0.67717]
[1758636796072,0.134,4201.0,4200.9,0.249]
[1758636796277,0.4444,4201.0,4200.9,0.249]
[1758636796878,0.4444,4201.0,4200.2,0.2877]
[1758636797183,0.134,4200.5,4200.1,0.249]
[1758636797483,0.3104,4200.2,4199.7,0.42829]
[1758636797784,0.3104,4199.9,4199.7,0.42829]
[1758636797977,0.134,4200.0,4199.6,0.5367]
[1758636798287,0.3104,4199.9,4199.6,0.5367]
[1758636798482,0.3104,4200.4,4200.0,0.42826]
[1758636799186,0.134,4200.5,4200.0,0.42826]
[1758636799487,0.4444,4200.5,4199.6,0.5367]
[1758636799984,0.134,4200.5,4200.1,0.42825]
[1758636800483,0.3104,4200.4,4200.1,0.42825]
[1758636800677,0.3104,4200.4,4199.6,0.5367]
[1758636800877,0.73863,4200.4,4199.6,0.2877]
[1758636801077,0.134,4200.5,4200.0,0.42826]
[1758636801376,0.3104,4200.3,4199.8,0.42828]
[1758636801571,0.3104,4200.4,4200.0,0.42826]
[1758636801777,0.56222,4200.5,4199.8,0.42828]
[1758636801978,0.3104,4200.3,4199.8,0.42828]
[1758636802184,0.42824,4200.3,4199.8,0.42828]
[1758636802384,0.3104,4200.2,4199.9,0.42827]
[1758636802594,0.3104,4200.4,4199.7,0.249]
[1758636802879,0.134,4200.5,4200.1,0.42825]
[1758636803083,0.56222,4200.5,4199.9,0.42827]
[1758636803282,0.3155,4200.4,4199.5,0.2877]
[1758636803477,0.3155,4200.4,4199.7,0.249]
[1758636803976,0.3155,4200.4,4199.9,0.42827]
[1758636804185,0.3155,4200.3,4200.0,0.42826]
[1758636804785,0.134,4200.5,4200.1,0.42825]
[1758636804979,0.3155,4200.4,4200.1,0.42825]
[1758636805281,0.134,4200.5,4199.7,0.249]
[1758636805477,0.3155,4200.4,4200.3,0.42823]
[1758636805878,0.132,4200.0,4199.8,0.42829]
[1758636806088,0.3155,4199.9,4199.8,0.42829]
[1758636806288,0.3155,4199.9,4199.8,0.42828]
[1758636807290,0.3155,4199.9,4199.4,0.249]
[1758636807486,0.3155,4199.9,4199.8,0.42829]
[1758636807691,0.3155,4200.4,4200.3,0.42824]
[1758636808389,0.134,4200.5,4199.9,0.2873]
[1758636808686,0.134,4200.5,4199.7,1.07075]
[1758636808882,0.134,4200.5,4200.2,0.42824]
[1758636809078,0.3155,4200.4,4199.8,0.2873]
[1758636809583,0.3155,4200.4,4200.2,0.42824]
[1758636809882,0.134,4200.5,4200.2,0.42824]
[1758636810185,0.3155,4200.9,4200.1,0.42826]
[1758636810384,0.3155,4201.0,4200.9,0.42818]
[1758636811076,0.4475,4201.0,4200.9,0.42818]
[1758636811681,0.132,4200.5,4199.8,0.2873]
[1758636811882,0.3155,4200.4,4200.3,0.42823]
[1758636812290,0.132,4200.0,4199.7,0.42829]
[1758636812491,0.132,4200.0,4199.3,0.2873]
[1758636812492,0.42833,4199.4,4198.8,0.2873]
[1758636812680,0.132,4199.5,4198.8,0.42839]
[1758636812882,0.132,4199.5,4198.0,38.8908]
[1758636813180,0.132,4199.5,4198.7,0.4284]
[1758636813181,0.3155,4198.9,4198.7,0.4284]
[1758636813394,0.3155,4198.9,4198.7,0.7157]
[1758636813782,0.3155,4198.9,4198.7,0.2873]
[1758636813991,0.3155,4198.9,4198.2,1.32013]
[1758636814293,0.132,4199.0,4198.2,1.55831]
[1758636814492,0.3155,4198.9,4198.7,0.4284]
[1758636814697,0.3155,4198.9,4198.8,0.42839]
[1758636815497,0.4475,4198.5,4198.4,0.249]
[1758636815995,0.4475,4198.5,4198.2,0.42844]
[1758636816182,0.132,4198.5,4198.2,0.42844]
[1758636816387,0.3155,4198.4,4198.3,0.42844]
[1758636816582,0.3155,4198.8,4198.3,0.71574]
[1758636816897,0.132,4199.0,4198.3,0.42844]
[1758636817088,0.4284,4198.7,4198.1,0.67745]
[1758636817287,0.132,4198.5,4198.1,0.67745]
[1758636817490,0.132,4198.5,4198.2,0.42845]
[1758636817789,0.3155,4198.4,4198.3,0.42844]
[1758636818187,0.3155,4198.4,4197.9,0.02382172]
[1758636818391,0.3155,4198.4,4198.3,0.42844]
[1758636818789,0.132,4199.0,4198.7,0.42839]
[1758636818790,0.3155,4198.9,4198.7,0.42839]
[1758636818997,0.4475,4199.0,4198.2,0.2873]
[1758636819201,0.3155,4198.9,4198.6,0.42841]
[1758636819592,0.132,4199.0,4198.5,0.42841]
[1758636819794,0.3155,4198.9,4198.3,0.42843]
[1758636819994,0.42843,4198.4,4197.9,0.02382172]
[1758636820193,0.3155,4198.4,4197.9,0.27282172]
[1758636820499,0.3155,4198.2,4198.1,0.42846]
[1758636820799,0.132,4198.0,4197.9,0.02382172]
[1758636820997,0.4475,4198.0,4197.9,0.02382172]
[1758636822999,0.132,4198.5,4198.4,0.42843]
[1758636823301,0.3155,4198.5,4198.4,0.71573]
[1758636823500,0.132,4199.5,4198.7,1.07101]
[1758636823501,0.3155,4199.4,4198.7,1.07101]
[1758636823798,0.42833,4199.4,4199.2,0.42835]
[1758636823991,0.132,4199.5,4199.2,0.42835]
[1758636824198,0.3155,4199.4,4199.3,0.42834]
[1758636824393,0.42833,4199.4,4199.1,0.42835]
[1758636824594,0.132,4199.0,4198.8,0.42839]
[1758636824795,0.3155,4198.9,4198.8,0.42839]
[1758636825603,0.3155,4199.4,4199.1,0.42835]
[1758636825803,0.3155,4199.4,4199.3,0.42833]
[1758636826003,0.3155,4199.4,4198.6,0.5363]
[1758636826507,0.3155,4199.4,4198.6,1.60732]
[1758636826700,0.3155,4199.4,4199.3,0.42834]
[1758636826997,0.3155,4199.2,4199.0,0.42837]
[1758636827188,0.4475,4199.5,4199.4,0.42833]
[1758636827392,0.74383,4199.4,4199.0,0.42836]
[1758636827599,0.132,4199.0,4198.8,0.42838]
[1758636827793,0.132,4199.0,4197.9,0.02382172]
[1758636827794,1.38646,4198.9,4197.9,0.02382172]
[1758636827995,0.4475,4198.0,4197.9,0.02382172]
[1758636829690,0.7475,4198.0,4197.9,0.02382172]
[1758636832307,1.07124,4197.8,4196.2,0.2873]
[1758636832494,4.67021,4198.0,4196.3,0.249]
[1758636832495,0.3155,4196.9,4196.3,0.249]
[1758636832696,0.3155,4196.9,4196.3,0.43496354]
[1758636833204,0.453,4197.5,4196.5,1.07154]
[1758636833507,0.42853,4197.4,4196.6,0.2879]
[1758636833704,0.321,4197.3,4196.6,0.2879]
[1758636833904,0.321,4197.4,4197.2,0.42855]
[1758636834104,0.321,4197.4,4197.0,0.42857]
[1758636834306,0.321,4197.4,4197.3,0.42854]
[1758636834802,0.432,4198.0,4197.3,0.42854]
[1758636834803,0.321,4197.9,4197.3,0.42854]
[1758636834996,0.432,4198.0,4197.2,0.249]
[1758636835198,0.321,4197.9,4197.3,1.07136]
[1758636835397,0.3,4198.0,4197.9,0.71638]
[1758636835598,0.3,4198.0,4197.5,1.07131]
[1758636835599,0.321,4197.8,4197.6,0.42851]
[1758636835798,0.321,4197.7,4197.6,0.42851]
[1758636836609,0.321,4197.9,4197.5,0.249]
[1758636836903,0.321,4197.7,4197.6,0.42851]
[1758636837198,0.321,4197.7,4197.5,0.42852]
[1758636837402,0.321,4197.3,4196.9,0.42858]
[1758636837604,0.321,4196.9,4196.5,0.67762]
[1758636837802,0.74959,4196.9,4196.0,0.2879]
[1758636838009,0.129,4197.0,4196.0,0.2879]
[1758636838010,0.321,4196.8,4196.6,0.42861]
[1758636838195,0.321,4196.9,4196.7,0.4286]
[1758636838397,0.129,4197.0,4196.4,0.249]
[1758636838601,0.321,4196.9,4196.7,0.4286]
[1758636839006,0.129,4197.0,4196.7,0.4286]
[1758636839307,0.321,4196.9,4196.8,0.42859]
[1758636840103,0.129,4196.5,4196.1,0.42866]
[1758636840307,0.321,4196.4,4196.3,0.42864]
[1758636841012,0.321,4196.4,4196.1,0.249]
[1758636841403,0.321,4196.3,4196.1,0.67766]
[1758636841711,0.321,4196.4,4196.3,0.42864]
[1758636842306,0.321,4196.4,4196.0,0.249]
[1758636842307,0.55763,4196.5,4196.2,0.42865]
[1758636842609,0.321,4196.4,4196.3,0.42864]
[1758636843204,0.42859,4196.9,4196.6,0.42861]
[1758636843407,0.321,4196.8,4196.6,0.42861]
[1758636843714,0.321,4196.8,4196.6,0.71651]
[1758636843913,0.321,4196.9,4196.1,0.2879]
[1758636844109,0.45,4197.0,4196.9,0.42858]
[1758636844307,0.45,4197.0,4196.9,0.42778]
[1758636845311,0.321,4197.0,4196.9,0.42778]
[1758636845512,0.321,4197.5,4197.4,0.42853]
[1758636845712,0.321,4197.4,4197.2,0.42854]
[1758636845904,0.321,4197.4,4196.7,1.07151]
[1758636845905,0.42855,4197.2,4196.4,1.07157]
[1758636846106,0.129,4197.0,4196.1,1.07165]
[1758636846314,0.129,4197.0,4196.1,0.249]
[1758636846613,0.321,4196.9,4196.6,0.42861]
[1758636846803,0.321,4196.8,4196.6,0.42861]
[1758636847013,0.321,4196.8,4196.1,0.249]
[1758636847207,0.321,4196.8,4196.7,0.4286]
[1758636848221,0.321,4197.4,4197.1,0.42856]
[1758636848415,0.321,4197.4,4197.0,0.42857]
[1758636848615,0.42853,4197.4,4197.2,0.42855]
[1758636848908,0.321,4197.3,4197.2,0.42855]
[1758636849615,0.45,4197.5,4197.4,0.42853]
[1758636849813,0.429,4198.0,4197.1,1.07141]
[1758636850001,0.429,4198.0,4197.3,1.07136]
[1758636850002,0.82803765,4197.9,4197.3,1.07136]
[1758636850207,0.321,4197.9,4197.0,0.3498]
[1758636850405,0.321,4197.9,4197.2,1.07139]
[1758636850609,0.85747,4198.0,4197.7,0.4285]
[1758636850806,0.321,4197.9,4197.7,0.4285]
[1758636851112,0.321,4197.4,4197.3,0.67754]
[1758636851510,0.429,4198.0,4197.7,0.4285]
[1758636851710,0.3241,4197.8,4197.7,0.4285]
[1758636851914,0.429,4198.0,4197.5,0.42852]
[1758636851915,0.75258,4197.9,4197.5,0.42852]
[1758636852216,0.3241,4197.6,4197.5,0.42852]
[1758636852517,0.42854,4197.3,4196.9,0.42858]
[1758636852705,0.1347,4197.5,4196.3,0.2879]
[1758636852706,0.3241,4196.9,4196.3,0.2879]
[1758636852906,0.3241,4196.9,4196.1,0.42866]
[1758636853111,0.3241,4196.4,4195.9,0.249]
[1758636853613,0.3241,4196.4,4196.3,0.42864]
[1758636853811,0.3241,4196.4,4195.9,0.249]
[1758636854011,0.3241,4196.4,4196.2,0.42865]
[1758636854313,0.1347,4196.5,4196.3,0.42864]
[1758636854514,0.3241,4196.4,4196.3,0.42864]
[1758636854912,0.1347,4196.5,4195.9,0.249]
[1758636855408,0.42864,4196.4,4196.1,0.42866]
[1758636855712,0.1347,4196.5,4196.0,0.249]
[1758636855905,0.3241,4196.4,4196.3,0.42864]
[1758636857006,0.1347,4196.0,4195.9,0.42868]
[1758636857207,0.4588,4196.0,4195.9,0.42868]
[1758636858210,0.4588,4196.0,4195.9,0.42869]
[1758636860618,0.3241,4195.4,4195.3,0.42875]
[1758636862911,0.3241,4195.4,4195.3,0.71665]
[1758636863111,0.1347,4196.0,4195.0,0.249]
[1758636863112,0.1347,4196.0,4195.9,0.42869]
[1758636863313,0.4608,4196.0,4195.9,0.42869]
[1758636864414,0.4608,4196.0,4195.7,0.4287]
[1758636864712,0.4608,4196.0,4195.0,0.537]
[1758636864713,0.3261,4195.8,4195.5,0.42872]
[1758636864913,0.1234,4195.5,4194.4,1.69089176]